fUST/lending_fUST_20250702
["ID","MTS","AMOUNT","RATE_DAILY","PERIOD"]
[369044371,1751443856043,-151.0,0.00018082,2]
[369044373,1751443856052,-151.0,0.00018082,2]
[369044374,1751443856062,-151.0,0.00018082,2]
[369044376,1751443856072,-460.0,0.00018082,2]
[369044378,1751443856081,-336.306551,0.00018082,2]
[369044380,1751443856090,-336.306551,0.00018082,2]
[369044381,1751443856099,-151.0,0.00018082,2]
[369044384,1751443856109,-151.0,0.00018082,2]
[369044385,1751443856118,-151.0,0.00018082,2]
[369044388,1751443856127,-151.768806,0.00018082,2]
[369044389,1751443856136,-460.0,0.00018082,2]
[369044391,1751443856146,-460.0,0.00018082,2]
[369044393,1751443856155,-151.0,0.00018082,2]
[369044395,1751443856166,-378.867334,0.00018082,2]
[369044398,1751443856176,-378.867334,0.00018082,2]
[369044400,1751443856186,-151.0,0.00018082,2]
[369044402,1751443856195,-151.0,0.00018082,2]
[369044418,1751443856337,-154.649271,0.00018082,2]
[369044420,1751443856348,-465.451048,0.00018082,2]
[369044422,1751443856358,-465.451048,0.00018082,2]
[369044424,1751443856368,-460.0,0.00018082,2]
[369044426,1751443856377,-460.0,0.00018082,2]
[369044428,1751443856387,-460.0,0.00018082,2]
[369044430,1751443856397,-151.0,0.00018082,2]
[369044432,1751443856406,-490.476994,0.00018082,2]
[369044434,1751443856416,-490.476994,0.00018082,2]
[369044436,1751443856425,-794.32,0.00018082,2]
[369044438,1751443856434,-468.54,0.00018082,2]
[369044440,1751443856443,-213.002438,0.00018082,2]
[369044442,1751443856453,-213.002438,0.00018082,2]
[369044444,1751443856462,-460.0,0.00018082,2]
[369044446,1751443856471,-460.0,0.00018082,2]
[369044448,1751443856481,-1579.607331,0.00018082,2]
[369044450,1751443856490,-850.98,0.00018082,2]
[369044452,1751443856499,-460.0,0.00018082,2]
[369044454,1751443856509,-1579.607331,0.00018082,2]
[369044456,1751443856520,-460.0,0.00018082,2]
[369044458,1751443856529,-568.63,0.00018082,2]
[369044460,1751443856539,-151.0,0.00018082,2]
[369044462,1751443856548,-460.0,0.00018082,2]
[369044464,1751443856558,-151.0,0.00018082,2]
[369044466,1751443856567,-460.0,0.00018082,2]
[369044468,1751443856576,-460.0,0.00018082,2]
[369044470,1751443856586,-460.0,0.00018082,2]
[369044472,1751443856595,-460.0,0.00018082,2]
[369044474,1751443856605,-151.0,0.00018082,2]
[369044476,1751443856615,-269.30683829,0.00018082,2]
[369044478,1751443856624,-151.0,0.00018082,2]
[369044480,1751443856634,-460.0,0.00018082,2]
[369044482,1751443856643,-460.0,0.00018082,2]
[369044484,1751443856652,-460.0,0.00018082,2]
[369044486,1751443856662,-151.0,0.00018082,2]
[369044488,1751443856671,-460.0,0.00018082,2]
[369044490,1751443856681,-460.0,0.00018082,2]
[369044493,1751443856690,-460.0,0.00018082,2]
[369044495,1751443856700,-835.56,0.00018082,2]
[369044496,1751443856709,-151.0,0.00018082,2]
[369044499,1751443856718,-768.71,0.00018082,2]
[369044501,1751443856728,-460.0,0.00018082,2]
[369044503,1751443856738,-460.0,0.00018082,2]
[369044505,1751443856748,-151.0,0.00018082,2]
[369044507,1751443856757,-460.0,0.00018082,2]
[369044509,1751443856766,-535.08,0.00018082,2]
[369044511,1751443856775,-460.0,0.00018082,2]
[369044512,1751443856784,-151.0,0.00018082,2]
[369044514,1751443856794,-238.651425,0.00018082,2]
[369044516,1751443856804,-460.0,0.00018082,2]
[369044518,1751443856813,-1879.38,0.00018082,2]
[369044520,1751443856823,-1637.15,0.00018082,2]
[369044522,1751443856833,-460.0,0.00018082,2]
[369044524,1751443856842,-460.0,0.00018082,2]
[369044526,1751443856853,-1010.49,0.00018082,2]
[369044528,1751443856862,-460.0,0.00018082,2]
[369044531,1751443856872,-1429.84,0.00018082,2]
[369044532,1751443856882,-1289.25,0.00018082,2]
[369044534,1751443856891,-1075.42,0.00018082,2]
[369044536,1751443856901,-645.44,0.00018082,2]
[369044538,1751443856910,-3279.83,0.00018082,2]
[369044540,1751443856919,-845.66,0.00018082,2]
[369044542,1751443856928,-460.0,0.00018082,2]
[369044544,1751443856937,-3040.19,0.00018082,2]
[369044546,1751443856947,-5322.34,0.00018082,2]
[369044548,1751443856956,-460.0,0.00018082,2]
[369044550,1751443856965,-532.43,0.00018082,2]
[369044552,1751443856976,-882.43,0.00018082,2]
[369044554,1751443856987,-635.2,0.00018082,2]
[369044557,1751443856997,-460.0,0.00018082,2]
[369044559,1751443857007,-600.73,0.00018082,2]
[369044561,1751443857017,-460.0,0.00018082,2]
[369044563,1751443857026,-460.0,0.00018082,2]
[369044565,1751443857035,-460.0,0.00018082,2]
[369044567,1751443857044,-460.0,0.00018082,2]
[369044569,1751443857055,-460.0,0.00018082,2]
[369044571,1751443857065,-500.1,0.00018082,2]
[369044573,1751443857074,-460.0,0.00018082,2]
[369044575,1751443857084,-881.02,0.00018082,2]
[369044577,1751443857094,-623.2,0.00018082,2]
[369044579,1751443857103,-460.0,0.00018082,2]
[369044581,1751443857112,-1471.72,0.00018082,2]
[369044583,1751443857121,-934.62,0.00018082,2]
[369044585,1751443857131,-1564.84,0.00018082,2]
[369044587,1751443857140,-460.0,0.00018082,2]
[369044589,1751443857150,-2631.81,0.00018082,2]
[369044591,1751443857159,-482.77,0.00018082,2]
[369044593,1751443857168,-460.0,0.00018082,2]
[369044595,1751443857177,-460.0,0.00018082,2]
[369044597,1751443857187,-460.0,0.00018082,2]
[369044599,1751443857196,-460.0,0.00018082,2]
[369044601,1751443857206,-151.0,0.00018082,2]
[369044603,1751443857215,-151.0,0.00018082,2]
[369044605,1751443857224,-3305.11,0.00018082,2]
[369044607,1751443857234,-2728.27,0.00018082,2]
[369044610,1751443857243,-849.36,0.00018082,2]
[369044611,1751443857253,-460.0,0.00018082,2]
[369044614,1751443857263,-460.0,0.00018082,2]
[369044616,1751443857274,-615.95,0.00018082,2]
[369044618,1751443857283,-480.43443942,0.00018082,2]
[369044620,1751443857293,-845.22,0.00018082,2]
[369044621,1751443857302,-594.16,0.00018082,2]
[369044623,1751443857311,-460.0,0.00018082,2]
[369044625,1751443857321,-460.0,0.00018082,2]
[369044627,1751443857330,-151.0,0.00018082,2]
[369044629,1751443857339,-515.26,0.00018082,2]
[369044632,1751443857349,-722.43,0.00018082,2]
[369044633,1751443857358,-460.0,0.00018082,2]
[369044636,1751443857367,-460.0,0.00018082,2]
[369044638,1751443857377,-659.03,0.00018082,2]
[369044640,1751443857386,-709.32,0.00018082,2]
[369044642,1751443857396,-1153.43,0.00018082,2]
[369044644,1751443857405,-547.81,0.00018082,2]
[369044646,1751443857415,-1284.04,0.00018082,2]
[369044648,1751443857424,-2203.89,0.00018082,2]
[369044650,1751443857434,-460.0,0.00018082,2]
[369044652,1751443857443,-936.841096,0.00018082,2]
[369044654,1751443857452,-340.740744,0.00018082,2]
[369044656,1751443857461,-693.55,0.00018082,2]
[369044658,1751443857471,-460.0,0.00018082,2]
[369044660,1751443857480,-460.0,0.00018082,2]
[369044662,1751443857491,-340.740744,0.00018082,2]
[369044664,1751443857501,-936.841096,0.00018082,2]
[369044666,1751443857511,-2135.01,0.00018082,2]
[369044668,1751443857522,-7054.28,0.00018082,2]
[369044670,1751443857531,-644.54,0.00018082,2]
[369044672,1751443857541,-151.0,0.00018082,2]
[369044674,1751443857550,-460.0,0.00018082,2]
[369044676,1751443857559,-460.0,0.00018082,2]
[369044678,1751443857568,-460.0,0.00018082,2]
[369044681,1751443857578,-151.0,0.00018082,2]
[369044683,1751443857587,-678.82,0.00018082,2]
[369044684,1751443857597,-151.0,0.00018082,2]
[369044687,1751443857608,-863.54,0.00018082,2]
[369044689,1751443857617,-151.0,0.00018082,2]
[369044691,1751443857626,-652.57,0.00018082,2]
[369044692,1751443857636,-1564.8,0.00018082,2]
[369044695,1751443857646,-750.41,0.00018082,2]
[369044697,1751443857656,-460.0,0.00018082,2]
[369044699,1751443857665,-460.0,0.00018082,2]
[369044701,1751443857674,-586.48,0.00018082,2]
[369044703,1751443857684,-4867.25,0.00018082,2]
[369044704,1751443857694,-2864.9618803,0.00018082,2]
[369044706,1751443857703,-2000.0,0.00018116,2]
[369044709,1751443857714,-2000.0,0.00018116,2]
[369044711,1751443857724,-3000.0,0.00018118,2]
[369044712,1751443857733,-239.905057,0.00018118,2]
[369044714,1751443857743,-239.905057,0.00018118,2]
[369044717,1751443857752,-151.0,0.00018118,2]
[369044719,1751443857762,-184.235404,0.00018118,2]
[369044721,1751443857772,-151.0,0.00018118,2]
[369044723,1751443857782,-151.0,0.00018118,2]
[369044725,1751443857791,-258.605202,0.00018118,2]
[369044727,1751443857801,-258.605202,0.00018118,2]
[369044728,1751443857810,-698.04941,0.00018118,2]
[369044730,1751443857819,-698.04941,0.00018118,2]
[369044732,1751443857829,-780.0,0.00018128,2]
[369044734,1751443857838,-377.578523,0.00018143,2]
[369044736,1751443857848,-377.578523,0.00018143,2]
[369044738,1751443857858,-151.0,0.00018143,2]
[369044740,1751443857867,-468.158223,0.00018143,2]
[369044742,1751443857877,-468.158223,0.00018143,2]
[369044744,1751443857886,-780.0,0.00018198,2]
[369044746,1751443857897,-780.0,0.00018226,2]
[369044748,1751443857907,-780.0,0.00018345,2]
[369044750,1751443857916,-213.150477,0.00018356,2]
[369044752,1751443857926,-262.228203,0.00018356,2]
[369044754,1751443857936,-262.228203,0.00018356,2]
[369044756,1751443857946,-151.0,0.00018356,2]
[369044758,1751443857956,-151.0,0.00018356,2]
[369044760,1751443857966,-301.563495,0.00018356,2]
[369044762,1751443857977,-151.0,0.00018356,2]
[369044764,1751443857989,-176.053222,0.00018356,2]
[369044766,1751443857999,-176.053222,0.00018356,2]
[369044768,1751443858009,-798.910393,0.00018356,2]
[369044770,1751443858019,-798.910393,0.00018356,2]
[369044772,1751443858028,-151.0,0.00018356,2]
[369044774,1751443858037,-239.394205,0.00018356,2]
[369044776,1751443858046,-239.394205,0.00018356,2]
[369044778,1751443858056,-151.0,0.00018356,2]
[369044780,1751443858066,-273.177028,0.00018356,2]
[369044782,1751443858075,-273.177028,0.00018356,2]
[369044784,1751443858084,-182.553769,0.00018356,2]
[369044786,1751443858093,-182.553769,0.00018356,2]
[369044788,1751443858103,-460.0,0.00018356,2]
[369044790,1751443858112,-151.0,0.00018356,2]
[369044792,1751443858121,-336.306551,0.00018356,2]
[369044794,1751443858130,-336.306551,0.00018356,2]
[369044796,1751443858140,-151.0,0.00018356,2]
[369044798,1751443858149,-151.0,0.00018356,2]
[369044800,1751443858158,-151.0,0.00018356,2]
[369044802,1751443858167,-151.0,0.00018356,2]
[369044804,1751443858176,-152.737831,0.00018356,2]
[369044806,1751443858186,-151.0,0.00018356,2]
[369044808,1751443858195,-183.22534681,0.00018356,2]
[369044810,1751443858204,-460.0,0.00018356,2]
[369044812,1751443858213,-151.0,0.00018356,2]
[369044814,1751443858223,-378.867334,0.00018356,2]
[369044816,1751443858232,-378.867334,0.00018356,2]
[369044818,1751443858241,-151.0,0.00018356,2]
[369044820,1751443858251,-151.0,0.00018356,2]
[369044822,1751443858260,-465.451048,0.00018356,2]
[369044824,1751443858269,-465.451048,0.00018356,2]
[369044826,1751443858278,-399.61329723,0.00018356,2]
[369044828,1751443858288,-460.0,0.00018356,2]
[369044830,1751443858297,-460.0,0.00018356,2]
[369044832,1751443858306,-490.476994,0.00018356,2]
[369044834,1751443858315,-151.0,0.00018356,2]
[369044836,1751443858325,-490.476994,0.00018356,2]
[369044838,1751443858334,-794.32,0.00018356,2]
[369044840,1751443858343,-468.54,0.00018356,2]
[369044842,1751443858353,-213.002438,0.00018356,2]
[369044844,1751443858362,-213.002438,0.00018356,2]
[369044846,1751443858371,-460.0,0.00018356,2]
[369044848,1751443858380,-169.03737682,0.00018356,2]
[369044850,1751443858389,-1579.607331,0.00018356,2]
[369044852,1751443858399,-850.98,0.00018356,2]
[369044854,1751443858408,-460.0,0.00018356,2]
[369044856,1751443858418,-1579.607331,0.00018356,2]
[369044858,1751443858427,-460.0,0.00018356,2]
[369044860,1751443858436,-568.63,0.00018356,2]
[369044862,1751443858445,-151.0,0.00018356,2]
[369044864,1751443858455,-460.0,0.00018356,2]
[369044866,1751443858464,-151.0,0.00018356,2]
[369044868,1751443858473,-460.0,0.00018356,2]
[369044870,1751443858482,-460.0,0.00018356,2]
[369044872,1751443858491,-460.0,0.00018356,2]
[369044874,1751443858500,-196.57988656,0.00018356,2]
[369044876,1751443858510,-151.0,0.00018356,2]
[369044878,1751443858518,-151.0,0.00018356,2]
[369044880,1751443858528,-181.62,0.00018356,2]
[369044882,1751443858537,-460.0,0.00018356,2]
[369044883,1751443858546,-460.0,0.00018356,2]
[369044884,1751443858555,-151.0,0.00018356,2]
[369044885,1751443858564,-603.21578774,0.00018356,2]
[369044886,1751443858574,-219.6477757,0.00018356,2]
[369044887,1751443858583,-460.0,0.00018356,2]
[369044888,1751443858591,-835.56,0.00018356,2]
[369044889,1751443858600,-151.0,0.00018356,2]
[369044890,1751443858609,-768.71,0.00018356,2]
[369044891,1751443858619,-460.0,0.00018356,2]
[369044892,1751443858628,-460.0,0.00018356,2]
[369044893,1751443858637,-152.813717,0.00018356,2]
[369044894,1751443858646,-460.0,0.00018356,2]
[369044895,1751443858655,-535.08,0.00018356,2]
[369044896,1751443858664,-460.0,0.00018356,2]
[369044897,1751443858673,-151.0,0.00018356,2]
[369044899,1751443858683,-460.0,0.00018356,2]
[369044900,1751443858692,-1879.38,0.00018356,2]
[369044901,1751443858701,-1637.15,0.00018356,2]
[369044903,1751443858711,-460.0,0.00018356,2]
[369044905,1751443858720,-460.0,0.00018356,2]
[369044907,1751443858730,-1010.49,0.00018356,2]
[369044909,1751443858739,-1289.25,0.00018356,2]
[369044911,1751443858749,-1075.42,0.00018356,2]
[369044913,1751443858758,-1429.84,0.00018356,2]
[369044915,1751443858767,-645.44,0.00018356,2]
[369044917,1751443858776,-3279.83,0.00018356,2]
[369044919,1751443858786,-845.66,0.00018356,2]
[369044921,1751443858797,-460.0,0.00018356,2]
[369044923,1751443858806,-3040.19,0.00018356,2]
[369044925,1751443858816,-5322.34,0.00018356,2]
[369044927,1751443858825,-460.0,0.00018356,2]
[369044930,1751443858834,-532.43,0.00018356,2]
[369044931,1751443858844,-882.43,0.00018356,2]
[369044933,1751443858853,-635.2,0.00018356,2]
[369044936,1751443858863,-460.0,0.00018356,2]
[369044938,1751443858872,-600.73,0.00018356,2]
[369044940,1751443858882,-460.0,0.00018356,2]
[369044942,1751443858891,-460.0,0.00018356,2]
[369044944,1751443858900,-460.0,0.00018356,2]
[369044946,1751443858909,-460.0,0.00018356,2]
[369044948,1751443858918,-460.0,0.00018356,2]
[369044950,1751443858927,-500.1,0.00018356,2]
[369044952,1751443858937,-460.0,0.00018356,2]
[369044954,1751443858947,-881.02,0.00018356,2]
[369044956,1751443858956,-623.2,0.00018356,2]
[369044958,1751443858965,-460.0,0.00018356,2]
[369044960,1751443858975,-1471.72,0.00018356,2]
[369044961,1751443858988,-934.62,0.00018356,2]
[369044963,1751443858998,-1564.84,0.00018356,2]
[369044965,1751443859007,-460.0,0.00018356,2]
[369044967,1751443859016,-2631.81,0.00018356,2]
[369044969,1751443859026,-460.0,0.00018356,2]
[369044971,1751443859035,-460.0,0.00018356,2]
[369044973,1751443859044,-460.0,0.00018356,2]
[369044975,1751443859053,-460.0,0.00018356,2]
[369044977,1751443859063,-219.589331,0.00018356,2]
[369044979,1751443859073,-151.0,0.00018356,2]
[369044981,1751443859082,-3305.11,0.00018356,2]
[369044983,1751443859091,-2728.27,0.00018356,2]
[369044985,1751443859101,-849.36,0.00018356,2]
[369044988,1751443859111,-460.0,0.00018356,2]
[369044989,1751443859120,-460.0,0.00018356,2]
[369044992,1751443859130,-615.95,0.00018356,2]
[369044994,1751443859139,-845.22,0.00018356,2]
[369045009,1751443859266,-594.16,0.00018356,2]
[369045011,1751443859276,-460.0,0.00018356,2]
[369045013,1751443859287,-460.0,0.00018356,2]
[369045015,1751443859296,-151.0,0.00018356,2]
[369045017,1751443859305,-515.26,0.00018356,2]
[369045019,1751443859315,-722.43,0.00018356,2]
[369045021,1751443859324,-460.0,0.00018356,2]
[369045023,1751443859333,-460.0,0.00018356,2]
[369045025,1751443859342,-659.03,0.00018356,2]
[369045027,1751443859351,-709.32,0.00018356,2]
[369045028,1751443859360,-1153.43,0.00018356,2]
[369045030,1751443859369,-547.81,0.00018356,2]
[369045033,1751443859379,-1284.04,0.00018356,2]
[369045035,1751443859388,-2203.89,0.00018356,2]
[369045037,1751443859397,-460.0,0.00018356,2]
[369045039,1751443859407,-340.740744,0.00018356,2]
[369045041,1751443859416,-693.55,0.00018356,2]
[369045043,1751443859425,-936.841096,0.00018356,2]
[369045045,1751443859434,-460.0,0.00018356,2]
[369045047,1751443859443,-460.0,0.00018356,2]
[369045049,1751443859452,-340.740744,0.00018356,2]
[369045051,1751443859461,-936.841096,0.00018356,2]
[369045053,1751443859470,-2135.01,0.00018356,2]
[369045055,1751443859480,-7054.28,0.00018356,2]
[369045057,1751443859489,-644.54,0.00018356,2]
[369045059,1751443859499,-191.190559,0.00018356,2]
[369045061,1751443859508,-460.0,0.00018356,2]
[369045063,1751443859518,-460.0,0.00018356,2]
[369045065,1751443859527,-460.0,0.00018356,2]
[369045067,1751443859537,-151.0,0.00018356,2]
[369045069,1751443859547,-678.82,0.00018356,2]
[369045071,1751443859557,-151.0,0.00018356,2]
[369045073,1751443859566,-863.54,0.00018356,2]
[369045075,1751443859575,-151.0,0.00018356,2]
[369045077,1751443859584,-652.57,0.00018356,2]
[369045078,1751443859594,-1564.8,0.00018356,2]
[369045081,1751443859603,-750.41,0.00018356,2]
[369045083,1751443859613,-460.0,0.00018356,2]
[369045085,1751443859622,-460.0,0.00018356,2]
[369045086,1751443859631,-586.48,0.00018356,2]
[369045088,1751443859640,-4867.25,0.00018356,2]
[369045089,1751443859650,-499.0,0.00018401,2]
[369045090,1751443859659,-741.04055239,0.00018403,2]
[369045091,1751443859668,-499.0,0.00018409,2]
[369045092,1751443859678,-1757.2143559,0.00018416,2]
[369045093,1751443859689,-151.0,0.00018473,2]
[369045094,1751443859698,-151.0,0.00018473,2]
[369045095,1751443859707,-499.0,0.00018528,2]
[369045096,1751443859717,-780.0,0.0001857,2]
[369045097,1751443859727,-151.0,0.00018581,2]
[369045098,1751443859737,-151.0,0.00018581,2]
[369045099,1751443859746,-239.905057,0.00018581,2]
[369045100,1751443859756,-239.905057,0.00018581,2]
[369045101,1751443859766,-151.0,0.00018581,2]
[369045102,1751443859776,-780.0,0.00018601,2]
[369045103,1751443859786,-5000.0,0.0001862,2]
[369045104,1751443859795,-500.0,0.0001863,2]
[369045105,1751443859805,-500.0,0.0001863,2]
[369045106,1751443859814,-500.0,0.0001863,2]
[369045107,1751443859824,-501.12227595,0.0001863,2]
[369045108,1751443859834,-262.228203,0.0001863,2]
[369045109,1751443859844,-262.228203,0.0001863,2]
[369045110,1751443859853,-151.0,0.0001863,2]
[369045111,1751443859864,-151.0,0.0001863,2]
[369045112,1751443859873,-151.0,0.0001863,2]
[369045113,1751443859883,-176.053222,0.0001863,2]
[369045114,1751443859892,-176.053218,0.0001863,2]
[369045115,1751443859902,-798.910393,0.0001863,2]
[369045116,1751443859912,-798.910399,0.0001863,2]
[369045117,1751443859921,-151.0,0.0001863,2]
[369045118,1751443859931,-239.394205,0.0001863,2]
[369045119,1751443859940,-239.394205,0.0001863,2]
[369045120,1751443859950,-151.0,0.0001863,2]
[369045121,1751443859959,-273.177028,0.0001863,2]
[369045122,1751443859969,-273.177028,0.0001863,2]
[369045123,1751443859983,-182.553769,0.0001863,2]
[369045124,1751443859992,-182.553769,0.0001863,2]
[369045125,1751443860002,-460.0,0.0001863,2]
[369045126,1751443860012,-151.0,0.0001863,2]
[369045127,1751443860022,-336.306551,0.0001863,2]
[369045128,1751443860032,-336.306551,0.0001863,2]
[369045129,1751443860042,-151.0,0.0001863,2]
[369045130,1751443860053,-151.0,0.0001863,2]
[369045131,1751443860063,-151.0,0.0001863,2]
[369045132,1751443860074,-151.0,0.0001863,2]
[369045133,1751443860083,-151.0,0.0001863,2]
[369045134,1751443860093,-460.0,0.0001863,2]
[369045135,1751443860102,-151.0,0.0001863,2]
[369045136,1751443860113,-378.867334,0.0001863,2]
[369045137,1751443860123,-377.578523,0.0001863,2]
[369045138,1751443860132,-378.867334,0.0001863,2]
[369045139,1751443860141,-377.578523,0.0001863,2]
[369045140,1751443860151,-151.0,0.0001863,2]
[369045141,1751443860161,-151.0,0.0001863,2]
[369045142,1751443860170,-465.451048,0.0001863,2]
[369045143,1751443860180,-465.451048,0.0001863,2]
[369045144,1751443860191,-460.0,0.0001863,2]
[369045145,1751443860201,-460.0,0.0001863,2]
[369045146,1751443860211,-490.476994,0.0001863,2]
[369045147,1751443860221,-151.0,0.0001863,2]
[369045148,1751443860231,-490.476994,0.0001863,2]
[369045149,1751443860240,-794.32,0.0001863,2]
[369045151,1751443860250,-468.54,0.0001863,2]
[369045153,1751443860260,-213.002438,0.0001863,2]
[369045155,1751443860270,-213.002438,0.0001863,2]
[369045157,1751443860281,-460.0,0.0001863,2]
[369045158,1751443860291,-1579.607331,0.0001863,2]
[369045160,1751443860300,-850.98,0.0001863,2]
[369045162,1751443860310,-460.0,0.0001863,2]
[369045163,1751443860319,-1579.607331,0.0001863,2]
[369045164,1751443860328,-460.0,0.0001863,2]
[369045166,1751443860338,-568.63,0.0001863,2]
[369045167,1751443860348,-151.0,0.0001863,2]
[369045168,1751443860357,-460.0,0.0001863,2]
[369045169,1751443860367,-151.0,0.0001863,2]
[369045170,1751443860377,-460.0,0.0001863,2]
[369045171,1751443860386,-460.0,0.0001863,2]
[369045172,1751443860396,-151.0,0.0001863,2]
[369045173,1751443860406,-460.0,0.0001863,2]
[369045174,1751443860415,-468.158223,0.0001863,2]
[369045175,1751443860424,-468.158223,0.0001863,2]
[369045176,1751443860434,-151.0,0.0001863,2]
[369045177,1751443860443,-151.0,0.0001863,2]
[369045178,1751443860452,-460.0,0.0001863,2]
[369045179,1751443860462,-151.0,0.0001863,2]
[369045180,1751443860471,-460.0,0.0001863,2]
[369045181,1751443860481,-835.56,0.0001863,2]
[369045182,1751443860490,-151.0,0.0001863,2]
[369045183,1751443860499,-151.0,0.0001863,2]
[369045184,1751443860509,-768.71,0.0001863,2]
[369045185,1751443860518,-151.0,0.0001863,2]
[369045186,1751443860529,-177.11346123,0.0001863,2]
[369045187,1751443860538,-460.0,0.0001863,2]
[369045188,1751443860547,-460.0,0.0001863,2]
[369045189,1751443860557,-535.08,0.0001863,2]
[369045190,1751443860566,-465.96540404,0.0001863,2]
[369045191,1751443860575,-151.0,0.0001863,2]
[369045192,1751443860585,-460.0,0.0001863,2]
[369045193,1751443860594,-1879.38,0.0001863,2]
[369045194,1751443860603,-1637.15,0.0001863,2]
[369045195,1751443860613,-460.0,0.0001863,2]
[369045196,1751443860622,-460.0,0.0001863,2]
[369045197,1751443860632,-258.605202,0.0001863,2]
[369045198,1751443860642,-258.605202,0.0001863,2]
[369045199,1751443860651,-1010.49,0.0001863,2]
[369045200,1751443860661,-1289.25,0.0001863,2]
[369045201,1751443860670,-1075.42,0.0001863,2]
[369045202,1751443860680,-1429.84,0.0001863,2]
[369045203,1751443860689,-645.44,0.0001863,2]
[369045204,1751443860698,-3279.83,0.0001863,2]
[369045205,1751443860707,-845.66,0.0001863,2]
[369045206,1751443860717,-460.0,0.0001863,2]
[369045207,1751443860726,-3040.19,0.0001863,2]
[369045208,1751443860736,-5322.34,0.0001863,2]
[369045209,1751443860745,-460.0,0.0001863,2]
[369045210,1751443860756,-532.43,0.0001863,2]
[369045211,1751443860766,-882.43,0.0001863,2]
[369045212,1751443860775,-635.2,0.0001863,2]
[369045213,1751443860788,-460.0,0.0001863,2]
[369045214,1751443860798,-600.73,0.0001863,2]
[369045215,1751443860808,-486.89926023,0.0001863,2]
[369045216,1751443860818,-460.0,0.0001863,2]
[369045217,1751443860827,-460.0,0.0001863,2]
[369045218,1751443860837,-460.0,0.0001863,2]
[369045219,1751443860847,-460.0,0.0001863,2]
[369045220,1751443860857,-500.1,0.0001863,2]
[369045221,1751443860867,-881.02,0.0001863,2]
[369045222,1751443860877,-623.2,0.0001863,2]
[369045223,1751443860887,-460.0,0.0001863,2]
[369045224,1751443860896,-1471.72,0.0001863,2]
[369045225,1751443860906,-934.62,0.0001863,2]
[369045226,1751443860916,-1564.84,0.0001863,2]
[369045227,1751443860926,-460.0,0.0001863,2]
[369045228,1751443860936,-2631.81,0.0001863,2]
[369045229,1751443860946,-460.0,0.0001863,2]
[369045230,1751443860956,-491.96329242,0.0001863,2]
[369045231,1751443860966,-478.6084764,0.0001863,2]
[369045232,1751443860976,-460.0,0.0001863,2]
[369045233,1751443860990,-151.0,0.0001863,2]
[369045234,1751443860999,-3305.11,0.0001863,2]
[369045235,1751443861009,-2728.27,0.0001863,2]
[369045236,1751443861018,-849.36,0.0001863,2]
[369045237,1751443861029,-460.0,0.0001863,2]
[369045238,1751443861038,-460.0,0.0001863,2]
[369045239,1751443861048,-615.95,0.0001863,2]
[369045240,1751443861058,-845.22,0.0001863,2]
[369045241,1751443861068,-594.16,0.0001863,2]